[Event "GrandPrix_30.05"]
[Site "Chess.com"]
[Date "2020.05.30"]
[Round "6"]
[White "chessfreak35"]
[Black "MaxVavulin"]
[Result "1/2-1/2"]
[WhiteElo "2444"]
[BlackElo "2274"]
[TimeControl "600+2"]
[EndTime "10:58:17 PDT"]
[Termination "Game drawn by repetition"]

1. e4 {[%clk 0:10:01.9]} 1... e5 {[%clk 0:09:58.8]} 2. Nf3 {[%clk 0:10:03.1]}
2... Nc6 {[%clk 0:09:59.4]} 3. Bb5 {[%clk 0:10:02.5]} 3... a6 {[%clk 0:10:00.3]}
4. Ba4 {[%clk 0:10:02.9]} 4... Nf6 {[%clk 0:10:00.5]} 5. d3 {[%clk 0:10:01.7]}
5... d6 {[%clk 0:09:49.7]} 6. c4 {[%clk 0:09:58.4]} 6... Nd7 {[%clk 0:09:45.5]}
7. Nc3 {[%clk 0:09:56.8]} 7... Nc5 {[%clk 0:09:46]} 8. Bxc6+ {[%clk 0:09:51.5]}
8... bxc6 {[%clk 0:09:46.6]} 9. d4 {[%clk 0:09:53]} 9... exd4 {[%clk 0:09:46.5]}
10. Nxd4 {[%clk 0:09:53.9]} 10... Bd7 {[%clk 0:09:45.7]} 11. O-O {[%clk
0:09:27.6]} 11... g6 {[%clk 0:09:22.9]} 12. Be3 {[%clk 0:08:03.5]} 12... Bg7
{[%clk 0:09:22.8]} 13. Qd2 {[%clk 0:08:03.8]} 13... O-O {[%clk 0:09:21.1]} 14.
Bh6 {[%clk 0:08:03.5]} 14... Re8 {[%clk 0:08:59.6]} 15. Bxg7 {[%clk 0:08:01.1]}
15... Kxg7 {[%clk 0:09:00.2]} 16. Rae1 {[%clk 0:07:54.3]} 16... a5 {[%clk
0:08:56.1]} 17. f4 {[%clk 0:07:51.1]} 17... f6 {[%clk 0:08:53.8]} 18. f5 {[%clk
0:06:30.4]} 18... a4 {[%clk 0:08:28.3]} 19. h4 {[%clk 0:06:10.1]} 19... Rb8
{[%clk 0:08:12.8]} 20. Rf3 {[%clk 0:06:01.5]} 20... Re5 {[%clk 0:07:48.7]} 21.
fxg6 {[%clk 0:03:37.4]} 21... hxg6 {[%clk 0:07:48.1]} 22. Ref1 {[%clk 0:03:39]}
22... Nxe4 {[%clk 0:07:27.9]} 23. Nxe4 {[%clk 0:03:40.1]} 23... Rxe4 {[%clk
0:07:29.6]} 24. Rxf6 {[%clk 0:03:40.8]} 24... Qxf6 {[%clk 0:07:17.1]} 25. Rxf6
{[%clk 0:03:40.9]} 25... Kxf6 {[%clk 0:07:18.7]} 26. Nf3 {[%clk 0:03:09.8]}
26... Rxc4 {[%clk 0:06:48]} 27. Qg5+ {[%clk 0:02:52.3]} 27... Kf7 {[%clk
0:06:47.2]} 28. h5 {[%clk 0:02:52.3]} 28... Rg8 {[%clk 0:06:25.8]} 29. h6 {[%clk
0:02:35.3]} 29... Bf5 {[%clk 0:02:54.8]} 30. Qe3 {[%clk 0:01:46.6]} 30... g5
{[%clk 0:01:52.2]} 31. Nxg5+ {[%clk 0:00:27.4]} 31... Kf6 {[%clk 0:01:52.3]} 32.
h7 {[%clk 0:00:09.7]} 32... Rh8 {[%clk 0:01:53.4]} 33. b3 {[%clk 0:00:10.8]}
33... axb3 {[%clk 0:01:54.4]} 34. axb3 {[%clk 0:00:12.3]} 34... Rc5 {[%clk
0:01:38.9]} 35. Qd4+ {[%clk 0:00:13.3]} 35... Re5 {[%clk 0:01:39.7]} 36. Nf3
{[%clk 0:00:14.7]} 36... Rxh7 {[%clk 0:01:40.6]} 37. Nxe5 {[%clk 0:00:15.4]}
37... dxe5 {[%clk 0:01:42]} 38. Qc5 {[%clk 0:00:16.6]} 38... Be4 {[%clk
0:01:36.7]} 39. Qf8+ {[%clk 0:00:15]} 39... Ke6 {[%clk 0:01:37.6]} 40. Qg8+
{[%clk 0:00:15.8]} 40... Kd6 {[%clk 0:01:36]} 41. g4 {[%clk 0:00:15.5]} 41...
Rh3 {[%clk 0:01:27]} 42. g5 {[%clk 0:00:13.1]} 42... Rf3 {[%clk 0:00:47.5]} 43.
b4 {[%clk 0:00:08.3]} 43... Bd5 {[%clk 0:00:36.1]} 44. Qd8+ {[%clk 0:00:07]}
44... Ke6 {[%clk 0:00:37.2]} 45. Qe8+ {[%clk 0:00:08.4]} 45... Kd6 {[%clk
0:00:36.2]} 46. g6 {[%clk 0:00:09.2]} 46... e4 {[%clk 0:00:18.3]} 47. Kh2 {[%clk
0:00:08.7]} 47... e3 {[%clk 0:00:12.5]} 48. g7 {[%clk 0:00:10.2]} 48... Rf2+
{[%clk 0:00:11.9]} 49. Kh3 {[%clk 0:00:10.9]} 49... Rg2 {[%clk 0:00:08.9]} 50.
Qxe3 {[%clk 0:00:07.6]} 50... Rxg7 {[%clk 0:00:07.8]} 51. Qf4+ {[%clk
0:00:08.2]} 51... Kd7 {[%clk 0:00:07.9]} 52. Qe5 {[%clk 0:00:09.4]} 52... Rg8
{[%clk 0:00:07.9]} 53. Qd4 {[%clk 0:00:09.5]} 53... Kd6 {[%clk 0:00:08.2]} 54.
Qc5+ {[%clk 0:00:10.6]} 54... Kd7 {[%clk 0:00:09.3]} 55. Qd4 {[%clk 0:00:12.1]}
55... Kd6 {[%clk 0:00:10.5]} 56. Qf6+ {[%clk 0:00:13.2]} 56... Kd7 {[%clk
0:00:11.6]} 57. Qd4 {[%clk 0:00:14.3]} 1/2-1/2

[Event "GrandPrix_30.05"]
[Site "Chess.com"]
[Date "2020.05.30"]
[Round "6"]
[White "ZefirKa"]
[Black "Petriashvili02"]
[Result "0-1"]
[WhiteElo "2118"]
[BlackElo "2331"]
[TimeControl "600+2"]
[EndTime "10:58:18 PDT"]
[Termination "Petriashvili02 won by resignation"]

1. e4 {[%clk 0:10:01.9]} 1... c6 {[%clk 0:09:58.4]} 2. Nf3 {[%clk 0:09:58.6]}
2... d5 {[%clk 0:09:59.5]} 3. Nc3 {[%clk 0:10:00.1]} 3... dxe4 {[%clk
0:09:57.8]} 4. Nxe4 {[%clk 0:10:02]} 4... Nf6 {[%clk 0:09:59.4]} 5. Qe2 {[%clk
0:09:57.3]} 5... Nxe4 {[%clk 0:10:00.3]} 6. Qxe4 {[%clk 0:09:59.2]} 6... Qd5
{[%clk 0:10:01.6]} 7. Qh4 {[%clk 0:09:15.8]} 7... Qe6+ {[%clk 0:10:01.3]} 8. Be2
{[%clk 0:09:08.3]} 8... Qg4 {[%clk 0:09:59.4]} 9. Qxg4 {[%clk 0:08:55.3]} 9...
Bxg4 {[%clk 0:10:01.3]} 10. d4 {[%clk 0:08:56.6]} 10... e6 {[%clk 0:09:53.1]}
11. Be3 {[%clk 0:08:49.8]} 11... Nd7 {[%clk 0:09:53.5]} 12. h3 {[%clk
0:08:47.4]} 12... Bh5 {[%clk 0:09:53.6]} 13. O-O-O {[%clk 0:08:36.1]} 13... Be7
{[%clk 0:09:51.1]} 14. Rhe1 {[%clk 0:07:42.6]} 14... O-O {[%clk 0:09:27.8]} 15.
g4 {[%clk 0:07:05.4]} 15... Bg6 {[%clk 0:09:28.2]} 16. h4 {[%clk 0:07:05.9]}
16... h5 {[%clk 0:08:42.6]} 17. gxh5 {[%clk 0:06:18.6]} 17... Bxh5 {[%clk
0:08:44.5]} 18. Ng5 {[%clk 0:06:19.9]} 18... Nf6 {[%clk 0:07:56.2]} 19. f3
{[%clk 0:05:58.2]} 19... Nd5 {[%clk 0:07:47.1]} 20. Bd2 {[%clk 0:05:38.5]} 20...
Bd6 {[%clk 0:07:46]} 21. Ne4 {[%clk 0:04:38.6]} 21... Bc7 {[%clk 0:06:55]} 22.
Rg1 {[%clk 0:04:33.9]} 22... Kh8 {[%clk 0:06:52.5]} 23. Rg5 {[%clk 0:04:26.8]}
23... g6 {[%clk 0:06:48.7]} 24. Rh1 {[%clk 0:03:37.5]} 24... Rad8 {[%clk
0:05:57.9]} 25. Bd1 {[%clk 0:03:23.8]} 25... Nf4 {[%clk 0:05:09.5]} 26. c3
{[%clk 0:02:55.3]} 26... Kg7 {[%clk 0:04:11]} 27. Kc2 {[%clk 0:02:01.3]} 27...
Rd5 {[%clk 0:03:51.5]} 28. c4 {[%clk 0:01:51.9]} 28... Rdd8 {[%clk 0:03:26.4]}
29. Bc3 {[%clk 0:01:45.9]} 29... f6 {[%clk 0:03:21]} 30. Rgg1 {[%clk 0:01:40.2]}
30... Bb6 {[%clk 0:03:03.3]} 31. c5 {[%clk 0:01:06.6]} 31... Bc7 {[%clk
0:03:04.1]} 32. Kc1 {[%clk 0:00:55.4]} 32... Nd5 {[%clk 0:02:59.8]} 33. Kd2
{[%clk 0:00:39.7]} 33... Bf4+ {[%clk 0:03:00.6]} 34. Kd3 {[%clk 0:00:37]} 34...
e5 {[%clk 0:02:59.4]} 35. Nd6 {[%clk 0:00:17.7]} 35... exd4 {[%clk 0:02:48.7]}
36. Nf5+ {[%clk 0:00:18.6]} 36... Kf7 {[%clk 0:02:50.2]} 37. Nxd4 {[%clk
0:00:20.5]} 37... Rfe8 {[%clk 0:02:23.6]} 38. Re1 {[%clk 0:00:21.1]} 38... Re5
{[%clk 0:02:15.5]} 39. Bb3 {[%clk 0:00:16.9]} 39... Ke7 {[%clk 0:02:04.3]} 40.
Re4 {[%clk 0:00:18.1]} 40... Bxf3 {[%clk 0:01:41.2]} 41. Rxe5+ {[%clk
0:00:16.6]} 41... Bxe5 {[%clk 0:01:34.9]} 42. Nxf3 {[%clk 0:00:17.7]} 42...
Nxc3+ {[%clk 0:01:36.3]} 43. Kc4 {[%clk 0:00:17.8]} 43... Nb5 {[%clk 0:01:15.3]}
44. Re1 {[%clk 0:00:16.9]} 44... Ke6 {[%clk 0:00:53.5]} 45. Kb4+ {[%clk
0:00:17.7]} 45... Kf5 {[%clk 0:00:54.3]} 46. Bc2+ {[%clk 0:00:17.5]} 46... Kf4
{[%clk 0:00:55.6]} 47. Nxe5 {[%clk 0:00:18.8]} 47... fxe5 {[%clk 0:00:52.8]} 48.
Bxg6 {[%clk 0:00:18.2]} 48... Rd2 {[%clk 0:00:47]} 49. Re4+ {[%clk 0:00:18]}
49... Kf3 {[%clk 0:00:47.7]} 50. Rxe5 {[%clk 0:00:17.8]} 50... Rxb2+ {[%clk
0:00:48.6]} 51. Kc4 {[%clk 0:00:19.1]} 51... Rxa2 {[%clk 0:00:37.9]} 52. h5
{[%clk 0:00:20.3]} 52... Ra4+ {[%clk 0:00:37]} 53. Kb3 {[%clk 0:00:21.5]} 53...
Rh4 {[%clk 0:00:37]} 54. Re7 {[%clk 0:00:22.1]} 54... a5 {[%clk 0:00:38.5]} 55.
Rxb7 {[%clk 0:00:22.5]} 55... a4+ {[%clk 0:00:40.1]} 56. Ka2 {[%clk 0:00:22.3]}
56... Rh2+ {[%clk 0:00:41.3]} 57. Kb1 {[%clk 0:00:21.6]} 57... a3 {[%clk
0:00:33.5]} 58. Kc1 {[%clk 0:00:22.9]} 58... a2 {[%clk 0:00:29.5]} 59. Ra7
{[%clk 0:00:23.5]} 59... Nxa7 {[%clk 0:00:19.7]} 0-1

[Event "GrandPrix_30.05"]
[Site "Chess.com"]
[Date "2020.05.30"]
[Round "6"]
[White "Durarbayli"]
[Black "Msb2"]
[Result "1-0"]
[WhiteElo "2645"]
[BlackElo "2643"]
[TimeControl "600+2"]
[EndTime "10:58:20 PDT"]
[Termination "Durarbayli won by resignation"]

1. e4 {[%clk 0:10:01.9]} 1... e6 {[%clk 0:10:00.7]} 2. d4 {[%clk 0:09:59.9]}
2... d5 {[%clk 0:10:01]} 3. e5 {[%clk 0:10:01.4]} 3... c5 {[%clk 0:10:02]} 4. c3
{[%clk 0:10:02.8]} 4... Qb6 {[%clk 0:10:03.3]} 5. Nf3 {[%clk 0:10:01]} 5... Nc6
{[%clk 0:10:04.7]} 6. Be2 {[%clk 0:10:01.5]} 6... cxd4 {[%clk 0:10:03.7]} 7.
cxd4 {[%clk 0:10:03.4]} 7... Nge7 {[%clk 0:10:05.1]} 8. Na3 {[%clk 0:10:01.8]}
8... Nf5 {[%clk 0:10:06]} 9. Nc2 {[%clk 0:10:02.9]} 9... Bd7 {[%clk 0:10:06.7]}
10. g4 {[%clk 0:09:27.6]} 10... Nfe7 {[%clk 0:10:05.7]} 11. O-O {[%clk
0:09:22.6]} 11... h5 {[%clk 0:09:44.7]} 12. h3 {[%clk 0:09:21.5]} 12... Ng6
{[%clk 0:09:28.7]} 13. b4 {[%clk 0:08:15.3]} 13... Nxb4 {[%clk 0:07:54.5]} 14.
Nxb4 {[%clk 0:08:00.7]} 14... Bxb4 {[%clk 0:06:42.4]} 15. Rb1 {[%clk 0:07:43.8]}
15... Qa5 {[%clk 0:06:42.9]} 16. Qb3 {[%clk 0:07:38.7]} 16... hxg4 {[%clk
0:06:20.7]} 17. hxg4 {[%clk 0:07:29.9]} 17... Be7 {[%clk 0:05:42.3]} 18. Qxb7
{[%clk 0:07:17.5]} 18... Rd8 {[%clk 0:05:42.4]} 19. Be3 {[%clk 0:03:48.1]} 19...
Qxa2 {[%clk 0:04:47.8]} 20. Bd3 {[%clk 0:03:25.6]} 20... Qa3 {[%clk 0:04:02.6]}
21. Rfd1 {[%clk 0:02:01.4]} 21... Nh4 {[%clk 0:03:30.2]} 22. Ne1 {[%clk
0:01:49.9]} 22... O-O {[%clk 0:02:48.5]} 23. Ra1 {[%clk 0:01:38.8]} 23... Qb4
{[%clk 0:02:49]} 24. Rxa7 {[%clk 0:01:30.8]} 24... Qxb7 {[%clk 0:02:00.1]} 25.
Rxb7 {[%clk 0:01:32.7]} 25... f5 {[%clk 0:00:56.7]} 26. Rc1 {[%clk 0:00:38.2]}
26... f4 {[%clk 0:00:37.4]} 27. Bd2 {[%clk 0:00:38.3]} 27... Rf7 {[%clk
0:00:39]} 28. Rcc7 {[%clk 0:00:19.7]} 28... Bf8 {[%clk 0:00:38]} 29. Ra7 {[%clk
0:00:15.6]} 29... g5 {[%clk 0:00:27.3]} 30. Ba5 {[%clk 0:00:15.4]} 30... Rc8
{[%clk 0:00:06.4]} 31. Rxd7 {[%clk 0:00:14.8]} 31... Rxd7 {[%clk 0:00:08.3]} 32.
Rxd7 {[%clk 0:00:16.3]} 32... Rc1 {[%clk 0:00:10.2]} 33. Rc7 {[%clk 0:00:10.7]}
33... Nf3+ {[%clk 0:00:10.2]} 34. Kf1 {[%clk 0:00:11.2]} 34... Rxc7 {[%clk
0:00:03.2]} 35. Bxc7 {[%clk 0:00:11.2]} 35... Nxd4 {[%clk 0:00:05.1]} 36. Kg2
{[%clk 0:00:09.1]} 36... Kf7 {[%clk 0:00:03.5]} 37. Nf3 {[%clk 0:00:09.8]} 37...
Nxf3 {[%clk 0:00:04.9]} 38. Kxf3 {[%clk 0:00:11.7]} 38... Be7 {[%clk 0:00:06.8]}
39. Bb5 {[%clk 0:00:12.8]} 39... Bc5 {[%clk 0:00:07.6]} 40. Ke2 {[%clk 0:00:14]}
40... Bd4 {[%clk 0:00:09]} 41. f3 {[%clk 0:00:15.1]} 41... Bc5 {[%clk
0:00:10.6]} 42. Kd3 {[%clk 0:00:16.5]} 42... Be7 {[%clk 0:00:11.8]} 43. Bb6
{[%clk 0:00:17.4]} 43... Kf8 {[%clk 0:00:12.3]} 44. Kc3 {[%clk 0:00:18.3]} 44...
Kf7 {[%clk 0:00:14.2]} 45. Kb3 {[%clk 0:00:19.4]} 45... Bf8 {[%clk 0:00:15.6]}
46. Ka4 {[%clk 0:00:18.2]} 46... Bg7 {[%clk 0:00:16.8]} 47. Bd4 {[%clk
0:00:19.7]} 47... Bf8 {[%clk 0:00:18.2]} 48. Ka5 {[%clk 0:00:20]} 48... Ba3
{[%clk 0:00:16.1]} 49. Kb6 {[%clk 0:00:20.9]} 49... Bc1 {[%clk 0:00:16.8]} 50.
Kc6 {[%clk 0:00:22.1]} 50... Ke7 {[%clk 0:00:13.8]} 51. Bc5+ {[%clk 0:00:22.8]}
51... Kf7 {[%clk 0:00:11.8]} 52. Kd6 {[%clk 0:00:23.9]} 52... Be3 {[%clk
0:00:10.6]} 53. Bxe3 {[%clk 0:00:22.5]} 53... fxe3 {[%clk 0:00:12.5]} 54. Kc5
{[%clk 0:00:24.1]} 54... Ke7 {[%clk 0:00:11.7]} 55. Kd4 {[%clk 0:00:24.4]} 55...
e2 {[%clk 0:00:13.6]} 56. Bxe2 {[%clk 0:00:25.5]} 56... Kf7 {[%clk 0:00:15.5]}
57. Kc5 {[%clk 0:00:26.6]} 57... Kg7 {[%clk 0:00:17.4]} 58. Kd6 {[%clk
0:00:27.4]} 58... Kh7 {[%clk 0:00:19.3]} 59. Kxe6 {[%clk 0:00:27.8]} 59... Kh6
{[%clk 0:00:21.2]} 60. Kf5 {[%clk 0:00:28.6]} 60... Kg7 {[%clk 0:00:23.1]} 61.
Kxg5 {[%clk 0:00:29.8]} 1-0

[Event "GrandPrix_30.05"]
[Site "Chess.com"]
[Date "2020.05.30"]
[Round "6"]
[White "ploky25"]
[Black "RovenVogel"]
[Result "0-1"]
[WhiteElo "2243"]
[BlackElo "2447"]
[TimeControl "600+2"]
[EndTime "10:58:45 PDT"]
[Termination "RovenVogel won on time"]

1. d4 {[%clk 0:10:00.7]} 1... d5 {[%clk 0:09:17.9]} 2. c4 {[%clk 0:10:00.2]}
2... e6 {[%clk 0:09:18.3]} 3. Nc3 {[%clk 0:10:00.1]} 3... Be7 {[%clk 0:09:19.2]}
4. Nf3 {[%clk 0:09:57.9]} 4... Nf6 {[%clk 0:09:19.9]} 5. Bf4 {[%clk 0:09:55.2]}
5... O-O {[%clk 0:09:20.2]} 6. a3 {[%clk 0:09:51.5]} 6... b6 {[%clk 0:09:19.1]}
7. cxd5 {[%clk 0:09:44.8]} 7... Nxd5 {[%clk 0:09:13.6]} 8. Nxd5 {[%clk
0:09:44.8]} 8... exd5 {[%clk 0:09:15.5]} 9. e3 {[%clk 0:09:39.1]} 9... c5 {[%clk
0:09:14.1]} 10. dxc5 {[%clk 0:09:33.2]} 10... bxc5 {[%clk 0:09:11.5]} 11. Bd3
{[%clk 0:09:16.2]} 11... c4 {[%clk 0:08:32]} 12. Bc2 {[%clk 0:08:49.5]} 12...
Bf6 {[%clk 0:06:31.5]} 13. O-O {[%clk 0:08:36.1]} 13... Nc6 {[%clk 0:06:25.8]}
14. Ba4 {[%clk 0:08:34.5]} 14... Na5 {[%clk 0:06:00.9]} 15. Qd2 {[%clk
0:06:45.5]} 15... Bf5 {[%clk 0:04:19.1]} 16. Rad1 {[%clk 0:06:15.7]} 16... Be4
{[%clk 0:03:57.8]} 17. Nd4 {[%clk 0:06:11.9]} 17... Qb6 {[%clk 0:03:49.6]} 18.
Rfe1 {[%clk 0:06:09.1]} 18... Nb3 {[%clk 0:02:44.3]} 19. Bxb3 {[%clk 0:05:25.7]}
19... cxb3 {[%clk 0:02:46.2]} 20. f3 {[%clk 0:04:29.3]} 20... Bg6 {[%clk
0:02:45.4]} 21. Rc1 {[%clk 0:03:22.5]} 21... Rac8 {[%clk 0:02:29.1]} 22. Rxc8
{[%clk 0:03:22.5]} 22... Rxc8 {[%clk 0:02:29.2]} 23. Rc1 {[%clk 0:03:23.1]}
23... Rc4 {[%clk 0:02:21.7]} 24. Rc3 {[%clk 0:02:55.5]} 24... h5 {[%clk
0:01:29.1]} 25. Rxc4 {[%clk 0:02:37.7]} 25... dxc4 {[%clk 0:01:29.8]} 26. Bg3
{[%clk 0:02:19.5]} 26... Be7 {[%clk 0:01:19.4]} 27. e4 {[%clk 0:02:01.9]} 27...
Bxa3 {[%clk 0:01:10.4]} 28. Bf2 {[%clk 0:01:51.9]} 28... Bb4 {[%clk 0:01:07.5]}
29. Qe2 {[%clk 0:01:45.8]} 29... Qc7 {[%clk 0:00:29.1]} 30. h4 {[%clk
0:01:33.6]} 30... a6 {[%clk 0:00:26.6]} 31. g3 {[%clk 0:01:30.8]} 31... a5
{[%clk 0:00:16.5]} 32. Nb5 {[%clk 0:01:07.9]} 32... Qc6 {[%clk 0:00:17]} 33. Nd4
{[%clk 0:01:08.5]} 33... Qc8 {[%clk 0:00:15.2]} 34. Kg2 {[%clk 0:00:50.7]} 34...
a4 {[%clk 0:00:15.7]} 35. Nb5 {[%clk 0:00:47.9]} 35... f6 {[%clk 0:00:10.6]} 36.
Be1 {[%clk 0:00:42.6]} 36... Bxe1 {[%clk 0:00:08.8]} 37. Qxe1 {[%clk 0:00:42.5]}
37... Qc5 {[%clk 0:00:09.6]} 38. Na3 {[%clk 0:00:39.2]} 38... Qd4 {[%clk
0:00:08.5]} 39. Qf2 {[%clk 0:00:35.3]} 39... Qd3 {[%clk 0:00:07]} 40. Qf1 {[%clk
0:00:31.1]} 40... Qd2+ {[%clk 0:00:06.9]} 41. Qf2 {[%clk 0:00:31.5]} 41... c3
{[%clk 0:00:08.1]} 42. bxc3 {[%clk 0:00:26.9]} 42... Qxc3 {[%clk 0:00:10]} 43.
Qe2 {[%clk 0:00:08.6]} 43... Bf7 {[%clk 0:00:10.4]} 44. Kf2 {[%clk 0:00:07.8]}
44... Kh7 {[%clk 0:00:10.3]} 45. Nb1 {[%clk 0:00:07.1]} 45... Qc2 {[%clk
0:00:10.4]} 46. Nd2 {[%clk 0:00:06.9]} 46... b2 {[%clk 0:00:10.8]} 47. Qe1
{[%clk 0:00:07.6]} 47... Qxd2+ {[%clk 0:00:10.7]} 48. Qxd2 {[%clk 0:00:07.8]}
48... b1=Q {[%clk 0:00:11.3]} 49. Qa5 {[%clk 0:00:06.2]} 49... Qa2+ {[%clk
0:00:11.8]} 50. Kg1 {[%clk 0:00:06.7]} 50... a3 {[%clk 0:00:11.7]} 51. e5 {[%clk
0:00:04.8]} 51... Qa1+ {[%clk 0:00:11.2]} 52. Kh2 {[%clk 0:00:05.1]} 52... Qb2+
{[%clk 0:00:11.5]} 53. Kh3 {[%clk 0:00:04.3]} 53... Be6+ {[%clk 0:00:11.5]} 54.
g4 {[%clk 0:00:05.1]} 54... hxg4+ {[%clk 0:00:12]} 55. fxg4 {[%clk 0:00:05.8]}
55... a2 {[%clk 0:00:10.4]} 56. exf6 {[%clk 0:00:06.7]} 56... Qb3+ {[%clk
0:00:09.2]} 57. Kh2 {[%clk 0:00:06.5]} 57... Qd5 {[%clk 0:00:09.5]} 58. Qc3
{[%clk 0:00:03.5]} 58... Qd1 {[%clk 0:00:06.8]} 0-1

[Event "GrandPrix_30.05"]
[Site "Chess.com"]
[Date "2020.05.30"]
[Round "6"]
[White "GadimbayliA"]
[Black "kpio91"]
[Result "1/2-1/2"]
[WhiteElo "2564"]
[BlackElo "2641"]
[TimeControl "600+2"]
[EndTime "10:58:59 PDT"]
[Termination "Game drawn by agreement"]

1. e4 {[%clk 0:09:59]} 1... c5 {[%clk 0:09:59.7]} 2. Nf3 {[%clk 0:09:57.6]} 2...
d6 {[%clk 0:10:00.9]} 3. d4 {[%clk 0:09:58.3]} 3... cxd4 {[%clk 0:10:01.7]} 4.
Nxd4 {[%clk 0:10:00.2]} 4... Nf6 {[%clk 0:10:03]} 5. Nc3 {[%clk 0:10:01.6]} 5...
a6 {[%clk 0:10:04.1]} 6. g3 {[%clk 0:10:03.1]} 6... e6 {[%clk 0:09:47.2]} 7. Bg2
{[%clk 0:10:02.4]} 7... Be7 {[%clk 0:09:46.8]} 8. O-O {[%clk 0:10:03.4]} 8...
O-O {[%clk 0:09:46.6]} 9. Be3 {[%clk 0:10:04.1]} 9... Bd7 {[%clk 0:09:44.6]} 10.
Qe2 {[%clk 0:10:03.5]} 10... Nc6 {[%clk 0:09:45.5]} 11. Rad1 {[%clk 0:10:04.4]}
11... Qc7 {[%clk 0:09:42.9]} 12. f4 {[%clk 0:09:51.5]} 12... Nxd4 {[%clk
0:09:31.2]} 13. Bxd4 {[%clk 0:09:53.4]} 13... Bc6 {[%clk 0:09:27.6]} 14. g4
{[%clk 0:08:53.6]} 14... e5 {[%clk 0:09:03.2]} 15. Be3 {[%clk 0:08:35]} 15...
exf4 {[%clk 0:09:03.7]} 16. Bxf4 {[%clk 0:08:14.1]} 16... Qb6+ {[%clk
0:08:53.1]} 17. Be3 {[%clk 0:07:11.5]} 17... Qxb2 {[%clk 0:08:49]} 18. Bd4
{[%clk 0:07:10.7]} 18... Qb4 {[%clk 0:08:43]} 19. g5 {[%clk 0:05:56.5]} 19...
Nd7 {[%clk 0:08:40]} 20. Nd5 {[%clk 0:04:50]} 20... Bxd5 {[%clk 0:08:32.2]} 21.
exd5 {[%clk 0:04:51.9]} 21... Rae8 {[%clk 0:07:44.7]} 22. Qh5 {[%clk 0:04:20.2]}
22... Bd8 {[%clk 0:07:19.6]} 23. c3 {[%clk 0:03:57.2]} 23... Qa5 {[%clk
0:05:32.9]} 24. Rf3 {[%clk 0:03:13.9]} 24... Bb6 {[%clk 0:05:30.4]} 25. Rh3
{[%clk 0:02:26]} 25... Bxd4+ {[%clk 0:05:29]} 26. cxd4 {[%clk 0:02:17.8]} 26...
h6 {[%clk 0:05:28.9]} 27. Qh4 {[%clk 0:01:42.8]} 27... Qd8 {[%clk 0:04:39.4]}
28. gxh6 {[%clk 0:01:11.6]} 28... Qxh4 {[%clk 0:04:39.2]} 29. Rxh4 {[%clk
0:01:13.5]} 29... g6 {[%clk 0:04:39.2]} 30. Rb1 {[%clk 0:01:01.9]} 30... b5
{[%clk 0:04:19.7]} 31. Rc1 {[%clk 0:01:02.9]} 31... Nb6 {[%clk 0:03:46.3]} 32.
h7+ {[%clk 0:00:53.2]} 32... Kh8 {[%clk 0:03:37.7]} 33. Rc7 {[%clk 0:00:54.3]}
33... Nc4 {[%clk 0:03:22.1]} 34. Re4 {[%clk 0:00:21.2]} 34... Rxe4 {[%clk
0:02:52.1]} 35. Bxe4 {[%clk 0:00:23.1]} 35... Kxh7 {[%clk 0:02:53.6]} 36. Bd3
{[%clk 0:00:11.1]} 36... Ne3 {[%clk 0:02:05.6]} 37. Rc6 {[%clk 0:00:11.9]} 37...
Nxd5 {[%clk 0:02:06]} 38. Rxd6 {[%clk 0:00:11.5]} 38... Nb4 {[%clk 0:02:06.2]}
39. Be4 {[%clk 0:00:10.9]} 39... Re8 {[%clk 0:01:51.2]} 40. a3 {[%clk 0:00:08]}
40... Rxe4 {[%clk 0:01:30.2]} 41. axb4 {[%clk 0:00:08.7]} 41... Re1+ {[%clk
0:01:31.8]} 42. Kf2 {[%clk 0:00:08.2]} 42... Rb1 {[%clk 0:01:33.7]} 43. Rxa6
{[%clk 0:00:08.5]} 43... Rxb4 {[%clk 0:01:32.6]} 44. Ke3 {[%clk 0:00:08]} 44...
Kg7 {[%clk 0:01:13.9]} 45. Ra7 {[%clk 0:00:06.4]} 45... Rb2 {[%clk 0:01:10]} 46.
h4 {[%clk 0:00:06.4]} 46... Rh2 {[%clk 0:00:54.4]} 47. Rb7 {[%clk 0:00:07.8]}
47... Rxh4 {[%clk 0:00:54.5]} 48. Rxb5 {[%clk 0:00:09.5]} 48... f5 {[%clk
0:00:44.7]} 49. d5 {[%clk 0:00:08.9]} 49... Re4+ {[%clk 0:00:44.3]} 50. Kd3
{[%clk 0:00:06.1]} 50... Kf6 {[%clk 0:00:28]} 51. Rb6+ {[%clk 0:00:07]} 51...
Ke5 {[%clk 0:00:21.6]} 52. Rxg6 {[%clk 0:00:07.1]} 52... Kxd5 {[%clk 0:00:22.8]}
53. Rg8 {[%clk 0:00:06.8]} 53... Kd6 {[%clk 0:00:05.5]} 54. Rf8 {[%clk
0:00:06.5]} 54... Re5 {[%clk 0:00:06.8]} 55. Kd4 {[%clk 0:00:06.4]} 55... Re4+
{[%clk 0:00:05.8]} 56. Kd3 {[%clk 0:00:07.4]} 56... Re5 {[%clk 0:00:05.1]} 57.
Kd4 {[%clk 0:00:08.6]} 57... Rd5+ {[%clk 0:00:06.5]} 58. Ke3 {[%clk 0:00:09.7]}
58... Ke7 {[%clk 0:00:08.2]} 59. Ra8 {[%clk 0:00:09.5]} 59... Kf6 {[%clk
0:00:09.5]} 60. Kf4 {[%clk 0:00:09.2]} 60... Rd4+ {[%clk 0:00:10.5]} 61. Kf3
{[%clk 0:00:10.7]} 61... Rb4 {[%clk 0:00:12.4]} 62. Rf8+ {[%clk 0:00:10.6]}
62... Kg6 {[%clk 0:00:13]} 63. Rg8+ {[%clk 0:00:11.5]} 63... Kf7 {[%clk
0:00:14.2]} 64. Ra8 {[%clk 0:00:12.5]} 64... Kf6 {[%clk 0:00:14.7]} 65. Rf8+
{[%clk 0:00:13.4]} 65... Ke6 {[%clk 0:00:15.2]} 1/2-1/2